fUSD/lending_fUSD_20240606
["ID","MTS","AMOUNT","RATE_DAILY","PERIOD"]
[328630677,1717637443588,-6152.61750105,0.00013898,2]
[328630678,1717637443599,-316.156902,0.00013898,2]
[328630679,1717637443610,-5680.21699695,0.00013898,2]
[328630680,1717637443619,-473.61750975,0.000139,2]
[328630681,1717637443629,-155.27361662,0.000139,2]
[328630682,1717637443638,-174.79223098,0.000139,2]
[328630683,1717637443647,-209.15588465,0.00013996,2]
[328630684,1717637443656,-155.52555216,0.00013996,2]
[328630685,1717637443666,-162.61004199,0.00013996,2]
[328630686,1717637443675,-326.04893454,0.00013996,2]
[328630687,1717637443685,-296.58359376,0.00013996,2]
[328630688,1717637443694,-241.39477687,0.00013996,2]
[328630690,1717637443703,-436.25186787,0.00013996,2]
[328630691,1717637443712,-427.5543358,0.00013996,2]
[328630692,1717637443722,-220.29473789,0.00013996,2]
[328630694,1717637443731,-591.73965516,0.00013996,2]
[328630695,1717637443742,-721.44079582,0.00013996,2]
[328630696,1717637443751,-155.0,0.00013996,2]
[328630697,1717637443760,-15500.38880481,0.00013996,2]
[328630698,1717637443772,-70.6663282,0.00013996,2]
[328630699,1717637443782,-212.25093587,0.00013996,2]
[328630700,1717637443791,-164.19410731,0.00013997,2]
[328630701,1717637443802,-251.97324259,0.00013997,2]
[328630702,1717637444510,244.0,0.00033593,120]
[328630704,1717637446027,-402.76042574,0.00013997,2]
[328630705,1717637446036,-1248.31846585,0.00013997,2]
[328630706,1717637446046,-285.9049909,0.00013997,2]
[328630707,1717637446055,-1688.58947731,0.00013997,2]
[328630708,1717637446067,-620.53980725,0.00013997,2]
[328630709,1717637446079,-376.3083099,0.00013997,2]
[328630710,1717637446248,-454.58092828,0.00013997,2]
[328630711,1717637446263,-713.10704317,0.00013997,2]
[328630712,1717637446275,-866.28661902,0.00013997,2]
[328630713,1717637446284,-1975.30466092,0.00013997,2]
[328630714,1717637446295,-73.09150382,0.00013998,2]
[328630715,1717637446307,-1065.61,0.00013998,2]
[328630716,1717637446460,-39.70791663,0.00013998,2]
[328630718,1717637447440,162.27833282,0.00033593,30]
[328630720,1717637459198,434.99561694,0.00033593,30]
[328630721,1717637460258,574.35293966,0.00013998,7]
[328630722,1717637461553,193.93270805,0.00033593,30]
[328630723,1717637463617,500.0,0.00033593,30]
[328630724,1717637463906,500.0,0.00033593,30]
[328630725,1717637464223,265.47158969,0.00033593,30]
[328630726,1717637488590,187.26877472,0.00033593,30]
[328630728,1717637494187,380.04595113,0.00033593,30]
[328630729,1717637500232,188.799251,0.00033593,30]
[328630732,1717637516634,285.48481718,0.00033593,30]
[328630733,1717637523392,373.72659361,0.00033593,30]
[328630735,1717637548497,188.56553628,0.00033593,30]
[328630736,1717637549505,210.53096003,0.00033593,30]
[328630737,1717637554870,213.71085693,0.00033593,30]
[328630738,1717637557012,339.03183437,0.00033593,30]
[328630739,1717637557123,205.50976035,0.00033593,30]
[328630740,1717637559504,158.0,0.00033593,120]
[328630741,1717637561044,150.0,0.00033593,30]
[328630742,1717637564896,500.0,0.00033593,30]
[328630743,1717637565171,596.39835811,0.00033593,30]
[328630744,1717637565873,152.75251749,0.00033593,30]
[328630745,1717637574364,369.67261338,0.00033593,30]
[328630746,1717637578557,241.76846794,0.00033593,30]
[328630747,1717637578877,500.0,0.00033593,30]
[328630748,1717637579146,500.0,0.00033593,30]
[328630749,1717637579788,500.0,0.00033593,30]
[328630750,1717637580560,300.45010207,0.00033593,30]
[328630751,1717637580986,152.21067688,0.00033593,30]
[328630752,1717637589539,596.7789,0.00033593,30]
[328630753,1717637590992,314.581453,0.00033593,30]
[328630754,1717637603805,500.0,0.00033593,30]
[328630755,1717637604110,500.0,0.00033593,30]
[328630756,1717637604424,559.19759198,0.00033593,30]
[328630757,1717637611917,319.99832543,0.00033593,30]
[328630759,1717637617033,174.61452522,0.00033593,30]
[328630760,1717637617888,231.66287163,0.00033593,30]
[328630761,1717637622164,500.0,0.00033593,30]
[328630762,1717637622445,429.99241279,0.00033593,30]
[328630763,1717637624953,500.0,0.00033593,30]
[328630764,1717637625540,478.3163,0.00033593,30]
[328630765,1717637636438,220.46149091,0.00033593,30]
[328630766,1717637638643,500.0,0.00033593,30]
[328630767,1717637638943,236.11316362,0.00033593,30]
[328630768,1717637642934,5397.56319549,0.00033593,30]
[328630769,1717637644524,727.45,0.00033593,30]
[328630770,1717637644681,727.45,0.00033593,30]
[328630771,1717637644945,727.45,0.00033593,30]
[328630772,1717637645246,727.45,0.00033593,30]
[328630773,1717637645529,727.45,0.00033593,30]
[328630774,1717637645842,727.45,0.00033593,30]
[328630775,1717637646114,727.45,0.00033593,30]
[328630776,1717637646393,727.45,0.00033593,30]
[328630777,1717637646693,727.45,0.00033593,30]
[328630778,1717637646975,727.45,0.00033593,30]
[328630779,1717637647247,727.45,0.00033593,30]
[328630780,1717637647508,727.45,0.00033593,30]
[328630781,1717637647801,727.45,0.00033593,30]
[328630782,1717637648074,727.45,0.00033593,30]
[328630783,1717637648332,727.45,0.00033593,30]
[328630784,1717637648645,727.45,0.00033593,30]
[328630785,1717637648926,727.45,0.00033593,30]
[328630786,1717637649189,727.45,0.00033593,30]
[328630787,1717637649504,727.45,0.00033593,30]
[328630788,1717637650107,727.45,0.00033593,30]
[328630789,1717637650399,727.45,0.00033593,30]
[328630790,1717637650672,727.45,0.00033593,30]
[328630791,1717637650953,727.45,0.00033593,30]
[328630793,1717637651269,727.62993917,0.00033593,30]
[328630794,1717637666963,257.90514606,0.00033593,60]
[328630795,1717637669815,5660.0,0.00015,10]
[328630796,1717637673412,164.63074079,0.00033593,30]
[328630797,1717637674542,4069.0,0.00033593,120]
[328630798,1717637675737,313.89416507,0.00033593,30]
[328630800,1717637679857,528.46240283,0.00033593,30]
[328630801,1717637682083,264.4101601,0.00033593,30]
[328630804,1717637688178,172.04519077,0.00033593,30]
[328630805,1717637693441,610.10539769,0.00033593,30]
[328630806,1717637710417,155.29751278,0.00033593,120]
[328630808,1717637822961,500.0,0.00033593,30]
[328630809,1717637823236,500.0,0.00033593,30]
[328630810,1717637823498,500.0,0.00033593,30]
[328630811,1717637823782,500.0,0.00033593,30]
[328630812,1717637824236,500.0,0.00033593,30]
[328630813,1717637824874,431.73404749,0.00033593,30]
[328630814,1717637830491,277.85381979,0.00033593,120]
[328630816,1717637834510,236.30198156,0.00033593,120]
[328630819,1717637918062,156.49077984,0.00033593,30]
[328630824,1717638057548,407.30135724,0.00033592,30]
[328630828,1717638225843,369.89351862,0.00033592,30]
[328630829,1717638264120,739.02,0.00033592,30]
[328630830,1717638306092,1037.0,0.00033592,30]
[328630831,1717638316706,1037.0,0.00033592,30]
[328630832,1717638327272,1037.0,0.00033592,30]
[328630834,1717638337858,1037.0,0.00033592,30]
[328630835,1717638348175,-545.44684599,0.00011092,2]
[328630836,1717638348195,-241.28370126,0.00011093,2]
[328630837,1717638349086,1037.0,0.00033592,30]
[328630838,1717638359739,1037.0,0.00033592,30]
[328630839,1717638370317,1037.0,0.00033592,30]
[328630840,1717638380976,1037.0,0.00033592,30]
[328630841,1717638391764,1037.0,0.00033592,30]
[328630842,1717638402347,1037.0,0.00033592,30]
[328630843,1717638412936,1037.0,0.00033592,30]
[328630844,1717638423544,1041.70925478,0.00033592,30]
[328630846,1717638546106,-201.54392054,0.0001025,2]
[328630847,1717638546127,-163.18081514,0.0001025,2]
[328630848,1717638546147,-155.0,0.00010251,2]
[328630849,1717638546167,-1252.54145949,0.00010251,2]
[328630850,1717638546188,-1067.04191087,0.00010251,2]
[328630851,1717638546210,-74.69589396,0.00010252,2]
[328630852,1717638549133,-133.37741965,0.00010252,2]
[328630853,1717638549156,-155.0,0.00010252,2]
[328630854,1717638549183,-3099.09729572,0.00010252,2]
[328630855,1717638549205,-10532.44542063,0.00010252,2]
[328630856,1717638549227,-4289.12004358,0.00010253,2]
[328630857,1717638549249,-943.94385815,0.00010254,2]
[328630858,1717638549272,-871.76,0.00010261,2]
[328630859,1717638549293,-525.03311929,0.00011095,2]
[328630860,1717638549314,-150.0,0.00011096,2]
[328630861,1717638549335,-155.0,0.00011114,2]
[328630862,1717638549357,-791.96732947,0.00011783,2]
[328630863,1717638549377,-255.57,0.00011783,2]
[328630864,1717638549398,-785.8451137,0.00011785,2]
[328630865,1717638549420,-499.99,0.00011785,2]
[328630866,1717638549441,-7538.65976902,0.00011801,2]
[328630867,1717638549462,-250.0,0.00012088,2]
[328630868,1717638549484,-1000.0,0.00012138,2]
[328630869,1717638549506,-250.0,0.00012197,2]
[328630870,1717638549528,-1947.76,0.00012273,2]
[328630871,1717638549555,-169.43,0.00012297,2]
[328630872,1717638549578,-1232.85,0.00012318,2]
[328630873,1717638549599,-871.76,0.00012525,2]
[328630874,1717638549623,-157.89,0.00012561,2]
[328630875,1717638549644,-157.89,0.00012568,2]
[328630876,1717638549665,-157.89,0.00012575,2]
[328630877,1717638549687,-157.89,0.00012582,2]
[328630878,1717638549710,-157.89,0.00012589,2]
[328630879,1717638549732,-157.89,0.00012596,2]
[328630880,1717638549753,-157.89,0.00012603,2]
[328630881,1717638549776,-1790.208,0.0001261,2]
[328630882,1717638549797,-157.89,0.0001261,2]
[328630883,1717638549819,-157.89,0.00012617,2]
[328630884,1717638549841,-157.89,0.00012624,2]
[328630885,1717638549862,-451.0,0.00012633,2]
[328630886,1717638549884,-160.56463079,0.00013463,2]
[328630887,1717638566139,-11.74536921,0.00013463,2]
[328630912,1717638632230,-1067.04191087,0.00013654,2]
[328630913,1717638632239,-1000.0,0.00013655,2]
[328630914,1717638632249,-319.92,0.00013699,2]
[328630915,1717638632258,-200.0,0.00013699,2]
[328630916,1717638632268,-1274.12,0.00013699,2]
[328630917,1717638632277,-2751.0,0.00013699,2]
[328630918,1717638632287,-1062.0,0.000137,2]
[328630919,1717638632296,-1000.0,0.000137,2]
[328630920,1717638632305,-4313.23936759,0.00013728,2]
[328630921,1717638632316,-451.81721999,0.00013728,2]
[328630922,1717638632456,-2650.19363692,0.00013728,2]
[328630923,1717638632466,-3642.82342011,0.00013854,2]
[328630924,1717638632474,-254.13669675,0.00013856,2]
[328630925,1717638632483,-532.06671,0.0001386,2]
[328630926,1717638632492,-455.08797497,0.00013886,2]
[328630927,1717638632504,-6223.57302503,0.00013886,2]
[328630928,1717638632514,-500.0,0.00013887,2]
[328630929,1717638632523,-500.0,0.00013888,2]
[328630930,1717638632532,-200.0,0.00013888,2]
[328630931,1717638632541,-499.99,0.00013888,2]
[328630932,1717638632550,-3162.12194037,0.00013898,2]
[328630933,1717638632570,-409.12146104,0.00013898,2]
[328630934,1717638632582,-2401.2977789,0.00013898,2]
[328630935,1717638632593,-4279.47831969,0.00013898,2]
[328630936,1717638632606,-6677.2292,0.00013898,2]
[328630937,1717638632615,-1015.8291,0.00013898,2]
[328630938,1717638632624,-762.0569,0.00013898,2]
[328630939,1717638632634,-2497.2945,0.000139,2]
[328630940,1717638632645,-3318.31542417,0.000139,2]
[328630941,1717638632654,-500.0,0.000139,2]
[328630942,1717638632663,-752.43574606,0.000139,2]
[328630943,1717638632672,-5762.9946,0.000139,2]
[328630944,1717638632682,-184.65702086,0.000139,2]
[328630945,1717638632691,-168.78354509,0.000139,2]
[328630946,1717638632699,-153.32491365,0.000139,2]
[328630947,1717638632709,-289.014,0.000139,2]
[328630948,1717638632718,-185.92823005,0.000139,2]
[328630949,1717638632727,-475.28929594,0.000139,2]
[328630950,1717638632737,-260.40447202,0.000139,2]
[328630951,1717638632746,-553.94507255,0.00013986,2]
[328630952,1717638632755,-9375.2665871,0.00013987,2]
[328630953,1717638632764,-2547.6092773,0.00013987,2]
[328630954,1717638632774,-693.05,0.00013989,3]
[328630955,1717638632783,-547.27958092,0.00013996,2]
[328630956,1717638632792,-324.68673257,0.00013996,2]
[328630957,1717638632801,-170.72753177,0.00013996,2]
[328630959,1717638632811,-292.35025109,0.00013996,2]
[328630961,1717638632820,-882.83536401,0.00013996,2]
[328630963,1717638632829,-283.58856742,0.00013996,2]
[328630965,1717638632838,-162.868812,0.00013996,2]
[328630967,1717638632848,-159.89625005,0.00013996,2]
[328630969,1717638632857,-2134.53074707,0.00013996,2]
[328630971,1717638632869,-364.72578971,0.00013996,2]
[328630973,1717638632878,-149.566567,0.00013997,2]
[328630976,1717638632891,-42.18823556,0.00013997,2]
[328630978,1717638632901,-3242.15901412,0.00013997,2]
[328630980,1717638632910,-266.76294225,0.00013998,2]
[328630982,1717638632920,-196.47169359,0.00013998,2]
[328630984,1717638632929,-293.15988838,0.00013998,2]
[328630986,1717638632939,-1069.75059082,0.00013998,2]
[328630987,1717638632948,-158.01011596,0.00013998,2]
[328630989,1717638632958,-163.71065101,0.00013998,2]
[328630991,1717638632967,-309.71136663,0.00013998,2]
[328630992,1717638632977,-167.76652895,0.00013998,2]
[328630993,1717638632986,-1058.43278914,0.00013998,2]
[328630994,1717638632996,-595.31703833,0.00013998,2]
[328630995,1717638633005,-257.15017053,0.00013998,2]
[328630996,1717638633014,-172.31399249,0.00013998,2]
[328630997,1717638633023,-155.09581377,0.00013998,2]
[328630998,1717638633033,-161.03351001,0.00013998,2]
[328630999,1717638633042,-206.79884839,0.00013998,2]
[328631000,1717638633052,-387.14861747,0.00013998,2]
[328631001,1717638633061,-172.5998299,0.00013998,2]
[328631002,1717638633072,-155.0,0.00013998,2]
[328631003,1717638633081,-736.66403081,0.00013998,2]
[328631004,1717638633091,-395.14984728,0.00013998,2]
[328631005,1717638633100,-155.0,0.00013998,2]
[328631006,1717638633109,-157.02626662,0.00013998,2]
[328631007,1717638633118,-191.63710678,0.00013998,2]
[328631008,1717638633128,-2032.53262273,0.00013998,2]
[328631009,1717638633137,-685.99590775,0.00013998,2]
[328631010,1717638633146,-155.93210281,0.00013998,2]
[328631011,1717638633155,-187.84950439,0.00013998,2]
[328631012,1717638633167,-85.7256937,0.00013998,2]
[328631013,1717638633176,-230.61643751,0.00013998,2]
[328631014,1717638633185,-179.28826561,0.00013998,2]
[328631015,1717638633195,-205.03192926,0.00013998,2]
[328631016,1717638633204,-156.68825179,0.00013998,2]
[328631017,1717638633214,-202.29831755,0.00013998,2]
[328631018,1717638633223,-202.14179385,0.00013998,2]
[328631019,1717638633232,-155.17219878,0.00013998,2]
[328631020,1717638633241,-200.58082886,0.00013998,2]
[328631021,1717638633251,-156.2353,0.00013998,2]
[328631022,1717638633261,-162.64907759,0.00013998,2]
[328631023,1717638633270,-155.0,0.00013998,2]
[328631024,1717638633279,-287.70054961,0.00013998,2]
[328631025,1717638633289,-156.07048625,0.00013998,2]
[328631026,1717638633298,-155.35744598,0.00013998,2]
[328631027,1717638633308,-157.16190491,0.00013998,2]
[328631028,1717638633317,-158.09264613,0.00013998,2]
[328631029,1717638633326,-156.28683818,0.00013998,2]
[328631030,1717638633336,-157.30591297,0.00013998,2]
[328631031,1717638633346,-328.44902515,0.00013998,2]
[328631032,1717638633355,-155.26323273,0.00013998,2]
[328631033,1717638633364,-1532.67439124,0.00013998,2]
[328631034,1717638633374,-308.633066,0.00013998,2]
[328631035,1717638633384,-574.34871661,0.00013998,2]
[328631036,1717638633393,-535.6337843,0.00013998,2]
[328631037,1717638633403,-201.26449152,0.00013998,2]
[328631038,1717638633412,-156.63077785,0.00013998,2]
[328631039,1717638633422,-242.14432747,0.00013998,2]
[328631040,1717638633431,-206.97807738,0.00013998,2]
[328631041,1717638633441,-199.13018571,0.00013998,2]
[328631042,1717638633451,-155.87982302,0.00013998,2]
[328631043,1717638633460,-440.02758746,0.00013998,2]
[328631044,1717638633469,-284.63873389,0.00013998,2]
[328631045,1717638633479,-157.90429605,0.00013998,2]
[328631046,1717638633488,-155.28592067,0.00013998,2]
[328631047,1717638633497,-202.72425914,0.00013998,2]
[328631048,1717638633506,-404.77250217,0.00013998,2]
[328631049,1717638633516,-168.0599353,0.00013998,2]
[328631050,1717638633526,-155.74225539,0.00013998,2]
[328631051,1717638633535,-2413.60655903,0.00013998,2]
[328631052,1717638633545,-173.39642471,0.00013998,2]
[328631053,1717638633554,-267.61741212,0.00013998,2]
[328631054,1717638633564,-200.44328397,0.00013998,2]
[328631055,1717638633574,-201.89233965,0.00013998,2]
[328631056,1717638633589,-172.04032371,0.00013998,2]
[328631057,1717638633598,-202.3530056,0.00013998,2]
[328631058,1717638633609,-327.5137528,0.00013998,2]
[328631059,1717638633618,-3030.15834463,0.00013998,2]
[328631060,1717638633626,-323.29204433,0.00013998,2]
[328631061,1717638633636,-305.53903369,0.00013998,2]
[328631062,1717638633647,-155.44912234,0.00013998,2]
[328631063,1717638633657,-182.15030889,0.00013998,2]
[328631064,1717638633667,-155.85480608,0.00013998,2]
[328631065,1717638633677,-224.59630112,0.00013998,2]
[328631066,1717638633686,-1259.39309019,0.00013998,2]
[328631067,1717638633696,-620.71045457,0.00013998,2]
[328631068,1717638633706,-341.27069739,0.00013998,2]
[328631069,1717638633715,-440.55390122,0.00013998,2]
[328631070,1717638633724,-357.08041431,0.00013998,2]
[328631071,1717638633735,-1352.1519106,0.00013998,2]
[328631072,1717638633757,-3774.23437664,0.00013998,2]
[328631073,1717638633769,-574.32971375,0.00013998,2]
[328631074,1717638638121,-19704.1877457,0.00013998,2]
[328631075,1717638638373,-332.57131004,0.00013998,2]
[328631076,1717638638385,-2349.40480559,0.00013998,2]
[328631077,1717638638576,-1539.6968488,0.00013998,2]
[328631078,1717638638650,-421.399227,0.00013998,2]
[328631091,1717638642023,-150.45867354,0.000139,2]
[328631092,1717638642034,-1452.8941897,0.00013998,2]
[328631093,1717638642044,-155.26897993,0.00013998,2]
[328631094,1717638642054,-155.0,0.00013998,2]
[328631095,1717638642064,-1203.31822211,0.00013998,2]
[328631096,1717638642074,-540.49383832,0.00013998,2]
[328631097,1717638642083,-571.82996181,0.00013998,2]
[328631098,1717638642093,-234.6740902,0.00013999,2]
[328631099,1717638642103,-246.28377405,0.00013999,2]
[328631100,1717638642112,-625.63244102,0.00013999,2]
[328631101,1717638642121,-502.46023211,0.00013999,2]
[328631102,1717638642130,-294911.16490309,0.00014,2]
[328631103,1717638642141,-2078.076,0.00014,2]
[328631104,1717638642153,-64085.6226447,0.00014,2]
[328631105,1717638642164,-1837.562882,0.00014,2]
[328631106,1717638642175,-3389.14033784,0.00014,2]
[328631107,1717638642186,-3910.374756,0.00014,2]
[328631108,1717638642198,-4658.37809792,0.00014,2]
[328631109,1717638642209,-753.21999999,0.00014,2]
[328631133,1717638643470,-87.4145053,0.00014,2]
[328631134,1717638643481,-1115959.12681189,0.00014,2]
[328631135,1717638643492,-23933.89370105,0.00014,2]
[328631136,1717638643612,-1167.50349186,0.00014,2]
[328631141,1717638646429,-627.56734107,0.00013999,2]
[328631144,1717638654390,143.87225794,0.00013463,2]
[328631145,1717638716262,817.2,0.00033593,30]
[328631146,1717638716533,817.2,0.00033593,30]
[328631147,1717638716815,817.2,0.00033593,30]
[328631148,1717638717093,817.2,0.00033593,30]
[328631149,1717638717392,817.2,0.00033593,30]
[328631150,1717638717691,817.2,0.00033593,30]
[328631151,1717638717961,817.2,0.00033593,30]
[328631152,1717638718256,817.2,0.00033593,30]
[328631153,1717638718528,817.2,0.00033593,30]
[328631154,1717638719151,817.2,0.00033593,30]
[328631155,1717638719454,817.2,0.00033593,30]
[328631156,1717638719729,817.2,0.00033593,30]
[328631157,1717638720009,817.2,0.00033593,30]
[328631158,1717638720299,817.2,0.00033593,30]
[328631159,1717638720734,817.2,0.00033593,30]
[328631160,1717638720976,817.2,0.00033593,30]
[328631161,1717638721394,817.2,0.00033593,30]
[328631162,1717638721672,817.2,0.00033593,30]
[328631163,1717638721941,817.2,0.00033593,30]
[328631164,1717638722158,-1000.0,0.00031,120]
[328631165,1717638722238,817.2,0.00033593,30]
[328631166,1717638722507,817.2,0.00033593,30]
[328631167,1717638722779,817.2,0.00033593,30]
[328631168,1717638723093,817.2,0.00033593,30]
[328631169,1717638723405,817.36986824,0.00033593,30]
[328631170,1717638733346,-300.0,0.00031675,120]
[328631171,1717638762465,88196.02833073,0.00033593,30]
[328631172,1717638800549,170.92368956,0.00033593,30]
[328631173,1717638807333,1181.9828437,0.00033593,120]
[328631177,1717639054823,5000.0,0.00033593,30]
[328631180,1717639449515,-785.8451137,0.00012784,2]
[328631181,1717639449544,-247.50732179,0.00012785,2]
[328631182,1717639449571,-809.86,0.00012891,2]
[328631183,1717639449597,-156.78756451,0.00013888,2]
[328631184,1717639452198,-343.21243549,0.00013888,2]
[328631185,1717639452223,-200.0,0.00013888,2]
[328631186,1717639452248,-150.0,0.00013896,2]
[328631187,1717639452273,-507.36180508,0.00013897,2]
[328631188,1717639452297,-328.967467,0.00013897,2]
[328631189,1717639452322,-208.34045628,0.00013897,2]
[328631190,1717639452347,-262.11783615,0.00013897,2]
[328631191,1717639454446,-923.42722277,0.00013897,2]
[328631192,1717639454471,-824.16186434,0.00013897,2]
[328631193,1717639454495,-232.27478231,0.00013897,2]
[328631194,1717639454520,-20.13613058,0.00013898,2]
[328631195,1717639456370,-580.70866942,0.00013898,2]
[328631196,1717639456393,-1248.6511,0.00013898,2]
[328631197,1717639456418,-170.64023058,0.00013899,2]
[328631198,1717639459192,-2000.0,0.00013899,2]
[328631199,1717639460812,-2000.0,0.00013899,2]
[328631200,1717639462432,-2000.0,0.00013899,2]
[328631201,1717639464016,-2000.0,0.00013899,2]
[328631202,1717639465604,-2000.0,0.00013899,2]
[328631203,1717639467301,-2000.0,0.00013899,2]
[328631204,1717639468779,-2000.0,0.00013899,2]
[328631205,1717639479060,-788.47833982,0.00013898,2]
[328631206,1717639479086,-211.52166018,0.00013899,2]
[328631207,1717639640108,-291.25612605,0.00012847,2]
[328631208,1717639640132,-795.8,0.00012848,2]
[328631209,1717639640154,-1741.25882587,0.00013621,2]
[328631210,1717639745112,-180.5825281,0.00013348,2]
[328631220,1717639832415,-1264.92213148,0.00013081,2]
[328631221,1717639832426,-759.84457121,0.00013081,2]
[328631222,1717639832438,-586.43877587,0.00013081,2]
[328631223,1717639832448,-201.28659522,0.00013348,2]
[328631224,1717639832459,-207.02394868,0.00013348,2]
[328631225,1717639832469,-431.47187584,0.00013348,2]
[328631226,1717639832631,-1541.9914002,0.00013348,2]
[328631227,1717639832642,-1074.71076932,0.00013348,2]
[328631228,1717639832653,-912.27462891,0.00013348,2]
[328631254,1717639838507,-6891.231292,0.00013348,2]
[328631255,1717639838519,-8078.09939707,0.00013348,2]
[328631256,1717639838531,-986.79325461,0.00013348,2]
[328631257,1717639838543,-344.28593222,0.00013348,2]
[328631258,1717639838553,-1164.63731884,0.0001386,2]
[328631260,1717639838720,-1835.36268116,0.0001386,2]
[328631261,1717639838730,-291.71677108,0.00013898,2]
[328631262,1717639838739,-4844.29349319,0.00013899,2]
[328631263,1717639838751,-43480.3643656,0.00013899,2]
[328631264,1717639838762,-1435.40784565,0.00013899,2]
[328631267,1717639841845,-25989.6052048,0.00013899,2]
[328631268,1717639841854,-404.1822687,0.000139,2]
[328631269,1717639841863,-648.92363866,0.000139,2]
[328631270,1717639841875,-351.07636134,0.000139,2]
[328631271,1717639841884,-1733.96180806,0.000139,2]
[328631272,1717639841895,-2517.69540336,0.000139,2]
[328631273,1717639841904,-184.65702086,0.000139,2]
[328631274,1717639841913,-1423.95951048,0.000139,2]
[328631275,1717639841924,-4019.09127962,0.000139,2]
[328631276,1717639841936,-315.6,0.000139,2]
[328631277,1717639841949,-1048.21934277,0.000139,2]
[328631278,1717639843002,-103988.48846713,0.000139,2]
[328631279,1717639843011,-29912.8583,0.000139,2]
[328631280,1717639843020,-481.12319593,0.000139,2]
[328631281,1717639843029,-178.94835933,0.000139,2]
[328631282,1717639843038,-335.4252101,0.000139,2]
[328631283,1717639843047,-253.7643184,0.0001399,2]
[328631284,1717639843056,-171.2,0.0001399,2]
[328631285,1717639843064,-499.99,0.00013998,2]
[328631286,1717639843074,-439.79628821,0.00013999,2]
[328631287,1717639843083,-210.01636847,0.00013999,2]
[328631288,1717639843092,-5889.05435153,0.00013999,2]
[328631289,1717639843101,-86127.55858969,0.00014,2]
[328631290,1717639843111,-2329.0,0.00014,2]
[328631291,1717639843120,-217.49608431,0.00014,2]
[328631292,1717639843130,-431639.10662292,0.00014,2]
[328631293,1717639843144,-182283.27029859,0.00014,2]
[328631323,1717639843643,-0.94780998,0.00014,2]
[328631324,1717639843783,-3255.26744422,0.00014,2]
[328631553,1717639846678,-647.49633951,0.00013899,2]
[328631554,1717639846688,-1131.75366049,0.00014,2]
[328631569,1717639865978,381.08734309,0.00033582,30]
[328631570,1717639872756,199.76180576,0.00033582,30]
[328631571,1717639894728,299.0579542,0.00033582,30]
[328631573,1717639898223,405.71537652,0.00033582,30]
[328631575,1717639908716,500.0,0.00033582,30]
[328631576,1717639908990,500.0,0.00033582,30]
[328631577,1717639909273,500.0,0.00033582,30]
[328631578,1717639909566,500.0,0.00033582,30]
[328631579,1717639909855,500.0,0.00033582,30]
[328631580,1717639910143,500.0,0.00033582,30]
[328631581,1717639910451,500.0,0.00033582,30]
[328631582,1717639910862,500.0,0.00033582,30]
[328631583,1717639910994,500.0,0.00033582,30]
[328631584,1717639911608,500.0,0.00033582,30]
[328631585,1717639911880,500.0,0.00033582,30]
[328631586,1717639912193,623.8886987,0.00033582,30]
[328631587,1717639920006,500.0,0.00033582,30]
[328631588,1717639920308,500.0,0.00033582,30]
[328631589,1717639920588,500.0,0.00033582,30]
[328631590,1717639920852,500.0,0.00033582,30]
[328631591,1717639921137,500.0,0.00033582,30]
[328631592,1717639921451,559.29986928,0.00033582,30]
[328631593,1717639922410,204.19647017,0.00033582,30]
[328631594,1717639926830,302.88052943,0.00033582,30]
[328631595,1717639929352,234.81604489,0.00033582,30]
[328631596,1717639932115,188.42180165,0.00033582,30]
[328631597,1717639941112,538.8399809,0.00033582,30]
[328631599,1717639945785,219.31882262,0.00033582,30]
[328631600,1717639954753,356.47998151,0.00033582,30]
[328631601,1717639966564,394.46883361,0.00033582,30]